bitfinex-derivatives/quotes_SOLF0:USTF0_20260304
["timestamp","ask_amount","ask_price","bid_price","bid_amount"]
[1772652511371,9.713,92.627,92.596,0.0680442]
[1772652512874,18.43471099,92.648,92.596,0.0680442]
[1772652512875,9.712,92.635,92.596,0.0680442]
[1772652513880,18.53255388,92.622,92.524,24.27592243]
[1772652514183,18.53255388,92.609,92.524,24.27592243]
[1772652514978,9.717,92.585,92.524,24.27592243]
[1772652515280,18.53255388,92.609,92.524,24.27592243]
[1772652515782,9.718,92.576,92.524,24.27592243]
[1772652517184,9.719,92.568,92.524,24.27592243]
[1772652519881,9.719,92.568,92.5,7.18731393]
[1772652519882,9.719,92.568,92.508,24.27592243]
[1772652520183,7.18731393,92.59,92.508,24.27592243]
[1772652520184,0.06840184,92.555,92.508,24.27592243]
[1772652521484,0.06840184,92.555,92.51,24.27592243]
[1772652522281,19.39770741,92.588,92.521,24.27592243]
[1772652524086,19.60740265,92.625,92.541,24.27592243]
[1772652525385,9.714,92.609,92.551,24.27592243]
[1772652525885,19.60740265,92.625,92.561,24.27592243]
[1772652526082,9.713,92.621,92.573,24.27592243]
[1772652526882,9.714,92.614,92.573,24.27592243]
[1772652527480,9.714,92.614,92.563,9.719]
[1772652528390,9.714,92.614,92.56,7.18731393]
[1772652529085,19.60740265,92.625,92.557,24.27592243]
[1772652530394,9.714,92.615,92.559,22.19042838]
[1772652530693,19.20594733,92.614,92.542,22.19042838]
[1772652533390,9.715,92.604,92.55,31.91142838]
[1772652533994,19.27566601,92.603,92.55,22.19042838]
[1772652534294,9.715,92.6,92.55,22.19042838]
[1772652536498,7.18731393,92.62,92.53,7.18731393]
[1772652536499,19.30866179,92.599,92.53,22.19042838]
[1772652537399,9.716,92.593,92.539,9.722]
[1772652537601,9.716,92.593,92.54,22.19042838]
[1772652538099,9.716,92.593,92.557,0.0681287]
[1772652538695,19.421,92.649,92.557,0.0681287]
[1772652538696,19.33403224,92.615,92.558,22.19042838]
[1772652539798,9.715,92.6,92.558,22.19042838]
[1772652540699,9.714,92.609,92.558,22.19042838]
[1772652541096,19.40585275,92.63,92.558,22.19042838]
[1772652542299,9.714,92.612,92.568,9.719]
[1772652543102,9.714,92.612,92.561,22.19042838]
[1772652544197,9.714,92.612,92.563,9.719]
[1772652545601,9.714,92.612,92.563,31.90942838]
[1772652546498,9.715,92.607,92.563,22.19042838]
[1772652547502,9.715,92.6,92.563,22.19042838]
[1772652547804,19.48735205,92.611,92.563,22.19042838]
[1772652548205,19.48735205,92.611,92.548,22.19042838]
[1772652549901,19.32651741,92.626,92.548,22.19042838]
[1772652550101,20.05607245,92.672,92.492,151.31]
[1772652550102,19.32651741,92.641,92.576,22.19042838]
[1772652550997,19.33754499,92.667,92.58,7.19395173]
[1772652551200,19.33754499,92.665,92.58,7.19395173]
[1772652551502,19.33754499,92.688,92.6,7.19395173]
[1772652551805,19.33754499,92.688,92.621,22.19042838]
[1772652552706,19.33754499,92.688,92.622,22.19042838]
[1772652553400,9.707,92.681,92.625,22.19042838]
[1772652555505,9.707,92.681,92.628,22.19042838]
[1772652555707,9.708,92.671,92.628,22.19042838]
[1772652556705,9.707,92.679,92.628,22.19042838]
[1772652557410,19.59674993,92.678,92.628,22.19042838]
[1772652558407,9.708,92.666,92.628,22.19042838]
[1772652558799,19.59674993,92.678,92.628,22.19042838]
[1772652559103,9.708,92.666,92.628,22.19042838]
[1772652560102,9.709,92.658,92.628,22.19042838]
[1772652560710,19.59674993,92.678,92.628,22.19042838]
[1772652561108,19.09538728,92.711,92.63,22.5039197]
[1772652561813,9.707,92.683,92.632,22.5039197]
[1772652562712,9.707,92.676,92.632,22.5039197]
[1772652564315,9.707,92.684,92.632,22.5039197]
[1772652564511,9.707,92.684,92.641,22.5039197]
[1772652565605,9.707,92.677,92.64,3.35150997]
[1772652566710,25.02015774,92.67,92.63,3.35150997]
[1772652568812,25.02015774,92.67,92.625,22.5039197]
[1772652570920,9.708,92.67,92.63,3.35150997]
[1772652571210,9.707,92.678,92.63,25.48302972]
[1772652573217,9.708,92.671,92.63,25.48302972]
[1772652575312,9.709,92.664,92.63,25.48302972]
[1772652575514,9.709,92.664,92.63,22.13151975]
[1772652575711,9.709,92.664,92.623,22.13151975]
[1772652579326,9.709,92.657,92.623,22.13151975]
[1772652579514,15.1018261,92.666,92.611,22.13151975]
[1772652580315,15.17269655,92.659,92.611,22.13151975]
[1772652580521,9.71,92.651,92.611,22.13151975]
[1772652581417,15.17269655,92.659,92.611,22.13151975]
[1772652582523,15.21673701,92.639,92.592,22.13151975]
[1772652582922,9.712,92.629,92.592,22.13151975]
[1772652583121,15.21673701,92.639,92.592,22.13151975]
[1772652584415,15.35550945,92.629,92.58,3.35150997]
[1772652584618,18.70983042,92.62,92.572,22.13151975]
[1772652585416,9.714,92.613,92.572,22.13151975]
[1772652586019,18.70983042,92.62,92.572,22.13151975]
[1772652587627,3.35150997,92.61,92.56,3.35150997]
[1772652588223,3.35150997,92.61,92.557,22.13151975]
[1772652588526,9.715,92.601,92.557,22.13151975]
[1772652589422,9.717,92.589,92.543,23.41839043]
[1772652589624,18.13314,92.6,92.55,26.7699004]
[1772652590021,18.2208929,92.614,92.57,3.35150997]
[1772652590428,18.2208929,92.614,92.57,26.7699004]
[1772652590827,18.2208929,92.614,92.492,151.31]
[1772652590828,18.22020696,92.634,92.581,23.41839043]
[1772652591832,9.712,92.629,92.59,3.35150997]
[1772652592131,20.87850529,92.65,92.591,23.41839043]
[1772652593424,9.711,92.639,92.591,23.41839043]
[1772652594134,9.71,92.647,92.6,3.35150997]
[1772652594337,9.71,92.647,92.6,26.7699004]
[1772652594633,17.52699532,92.65,92.6,26.7699004]
[1772652595135,9.71,92.649,92.61,3.35150997]
[1772652596033,9.709,92.659,92.61,26.7699004]
[1772652596734,9.71,92.652,92.61,23.41839043]
[1772652597934,9.711,92.645,92.61,23.41839043]
[1772652598337,17.92023529,92.644,92.587,23.41839043]
[1772652598537,9.712,92.628,92.59,3.35150997]
[1772652599538,9.712,92.628,92.6,0.0680617]
[1772652599938,9.712,92.637,92.6,3.41957167]
[1772652600632,9.712,92.637,92.6,26.8379621]
[1772652600833,9.711,92.645,92.61,26.7699004]
[1772652601539,17.96355374,92.671,92.62,23.41839043]
[1772652601841,17.96355374,92.671,92.62,26.7699004]
[1772652602030,3.35150997,92.67,92.62,26.7699004]
[1772652602232,18.06736165,92.659,92.601,23.41839043]
[1772652602431,24.62816555,92.639,92.554,19.83994797]
[1772652602640,9.713,92.625,92.59,3.35150997]
[1772652603442,9.714,92.617,92.58,3.35150997]
[1772652604534,24.62816555,92.624,92.576,23.41839043]
[1772652604735,27.97967552,92.63,92.581,23.41839043]
[1772652605341,24.62816555,92.63,92.581,23.41839043]
[1772652605542,27.97967552,92.63,92.581,23.41839043]
[1772652606037,24.62816555,92.63,92.57,3.35150997]
[1772652606341,27.97967552,92.63,92.57,23.41839043]
[1772652606545,27.98478758,92.63,92.58,3.35662203]
[1772652607237,24.62816555,92.63,92.58,26.77501246]
[1772652607444,27.98478758,92.63,92.58,26.77501246]
[1772652607843,24.62816555,92.63,92.58,26.77501246]
[1772652608344,19.419,92.66,92.5,19.452]
[1772652608345,27.98478758,92.62,92.564,23.41839043]
[1772652608544,24.62816555,92.609,92.55,3.35662203]
[1772652608743,19.423,92.639,92.548,23.41839043]
[1772652608744,27.98478758,92.6,92.548,23.41839043]
[1772652609144,9.717,92.588,92.548,23.41839043]
[1772652609544,27.98478758,92.6,92.54,3.35662203]
[1772652609844,27.98478758,92.6,92.532,23.41839043]
[1772652610041,27.98478758,92.6,92.541,23.41839043]
[1772652610448,9.717,92.583,92.541,23.41839043]
[1772652610646,27.98478758,92.6,92.55,3.35662203]
[1772652611445,9.716,92.591,92.55,3.35662203]
[1772652611643,24.62816555,92.6,92.55,26.77501246]
[1772652611843,24.62816555,92.616,92.57,26.77501246]
[1772652612149,24.62816555,92.659,92.6,3.35662203]
[1772652612344,24.62816555,92.659,92.61,3.35662203]
[1772652612540,9.71,92.648,92.62,3.35662203]
[1772652613343,9.711,92.64,92.6,3.35662203]
[1772652613953,9.71,92.65,92.61,3.35662203]
[1772652614157,9.71,92.65,92.596,23.41839043]
[1772652614360,9.71,92.65,92.61,3.35662203]
[1772652614658,9.71,92.65,92.596,23.41839043]
[1772652615357,24.62816555,92.641,92.588,9.717]
[1772652615858,24.62816555,92.641,92.588,33.13539043]
[1772652616060,24.62816555,92.641,92.589,23.41839043]
[1772652616961,24.62816555,92.641,92.52,26.63567942]
[1772652616962,24.62816555,92.639,92.572,23.41839043]
[1772652617363,24.62816555,92.669,92.581,23.41839043]
[1772652617958,24.62816555,92.635,92.581,23.41839043]
[1772652619056,23.56266782,92.669,92.581,23.41839043]
[1772652619964,23.56266782,92.669,92.52,26.63567942]
[1772652619965,23.56266782,92.669,92.601,24.24684133]
[1772652621365,9.709,92.659,92.604,24.24684133]
[1772652622660,23.56266782,92.704,92.62,7.18767942]
[1772652622861,23.56266782,92.704,92.621,24.24684133]
[1772652623058,9.707,92.684,92.621,24.24684133]
[1772652623256,124.0,92.74,92.621,24.24684133]
[1772652623257,23.56266782,92.683,92.621,24.24684133]
[1772652623667,23.56266782,92.679,92.621,24.24684133]
[1772652623861,9.709,92.657,92.595,24.24684133]
[1772652624261,23.56266782,92.664,92.595,24.24684133]
[1772652624464,23.56266782,92.664,92.6,24.24684133]
[1772652625367,23.56266782,92.664,92.606,9.715]
[1772652625661,9.707,92.677,92.607,24.24684133]
[1772652625866,23.56266782,92.697,92.621,24.24684133]
[1772652626266,9.707,92.677,92.624,25.16430141]
[1772652626766,23.56266782,92.697,92.624,25.16430141]
[1772652626968,23.56266782,92.697,92.626,25.16430141]
[1772652627565,23.56266782,92.697,92.64,34.87530141]
[1772652627861,23.56266782,92.697,92.641,25.16430141]
[1772652628059,9.704,92.708,92.643,25.16430141]
[1772652629059,22.8386384,92.713,92.653,9.71]
[1772652629260,22.8386384,92.713,92.654,25.16430141]
[1772652629971,22.8386384,92.713,92.663,9.709]
[1772652630370,22.8386384,92.703,92.631,25.16430141]
[1772652630568,22.8386384,92.699,92.631,25.16430141]
[1772652630764,22.8386384,92.679,92.591,25.16430141]
[1772652630968,22.8386384,92.667,92.604,9.715]
[1772652631163,22.8386384,92.667,92.605,25.16430141]
[1772652631678,22.8386384,92.667,92.615,34.87830141]
[1772652631874,22.8386384,92.667,92.615,25.16430141]
[1772652632282,22.8386384,92.667,92.616,9.714]
[1772652632775,9.709,92.665,92.616,25.16430141]
[1772652633678,22.8386384,92.66,92.599,25.16430141]
[1772652634069,9.709,92.657,92.6,34.87930141]
[1772652634274,9.709,92.657,92.601,25.16430141]
[1772652634777,22.8386384,92.669,92.601,25.16430141]
[1772652635078,22.8386384,92.669,92.57,7.18767942]
[1772652635079,22.8386384,92.669,92.571,25.16430141]
[1772652636479,9.71,92.65,92.589,25.16430141]
[1772652636678,22.8386384,92.654,92.589,25.16430141]
[1772652637281,22.8386384,92.654,92.559,19.44]
[1772652637282,22.8386384,92.654,92.591,25.16430141]
[1772652637476,22.8386384,92.674,92.61,25.16430141]
[1772652637778,22.8386384,92.674,92.611,25.16430141]
[1772652638477,22.8386384,92.674,92.618,9.713]
[1772652639382,9.708,92.671,92.618,9.713]
[1772652640885,22.8386384,92.665,92.611,25.16430141]
[1772652642085,9.709,92.663,92.614,9.714]
[1772652642478,22.8386384,92.663,92.591,25.16430141]
[1772652643481,9.71,92.655,92.605,9.715]
[1772652644081,22.8386384,92.654,92.605,9.715]
[1772652644482,9.709,92.663,92.609,25.16430141]
[1772652644888,22.8386384,92.662,92.609,25.16430141]
[1772652645084,9.709,92.661,92.612,9.714]
[1772652645285,22.8386384,92.66,92.609,25.16430141]
[1772652645685,22.8386384,92.651,92.591,25.16430141]
[1772652645885,22.8386384,92.651,92.571,25.16430141]
[1772652646687,22.8386384,92.641,92.571,25.16430141]
[1772652647486,22.8386384,92.669,92.571,25.16430141]
[1772652648479,9.71,92.653,92.598,9.715]
[1772652649592,23.51606025,92.649,92.594,24.86829891]
[1772652650383,23.51606025,92.643,92.581,9.717]
[1772652650894,23.51606025,92.659,92.599,24.86829891]
[1772652651996,33.22506025,92.658,92.599,24.86829891]
[1772652653394,23.51606025,92.666,92.581,24.86829891]
[1772652653898,9.709,92.664,92.608,24.86829891]
[1772652654089,23.51606025,92.663,92.608,24.86829891]
[1772652654594,23.51606025,92.66,92.608,24.86829891]
[1772652655590,9.71,92.651,92.608,24.86829891]
[1772652656894,23.51606025,92.66,92.608,24.86829891]
[1772652657085,23.51606025,92.66,92.583,24.86829891]
[1772652657291,23.51606025,92.66,92.584,24.86829891]
[1772652657691,23.51606025,92.65,92.6,24.86829891]
[1772652659597,23.51606025,92.65,92.609,9.714]
[1772652660588,9.709,92.657,92.609,9.714]
[1772652660898,13.42023039,92.711,92.6,24.86829891]
[1772652660899,23.51606025,92.709,92.61,24.86829891]
[1772652661097,23.51606025,92.707,92.61,24.86829891]
[1772652661299,23.51606025,92.705,92.61,24.86829891]
[1772652661496,23.51606025,92.703,92.61,24.86829891]
[1772652661695,23.51606025,92.701,92.61,24.86829891]
[1772652661996,23.51606025,92.699,92.61,24.86829891]
[1772652662500,9.708,92.673,92.631,9.712]
[1772652663902,23.51606025,92.681,92.638,9.711]
[1772652664400,23.51606025,92.681,92.624,24.86829891]
[1772652665399,9.708,92.673,92.63,9.712]
[1772652666097,23.51606025,92.679,92.63,9.712]
[1772652666604,23.51606025,92.67,92.624,24.86829891]
[1772652666900,23.51606025,92.67,92.594,24.86829891]
[1772652667102,9.71,92.648,92.598,9.715]
[1772652667304,23.51606025,92.647,92.598,9.715]
[1772652668001,9.711,92.646,92.594,24.86829891]
[1772652668201,23.51606025,92.647,92.594,24.86829891]
[1772652668601,9.711,92.646,92.597,9.716]
[1772652668998,23.51606025,92.646,92.594,24.86829891]
[1772652669197,9.711,92.644,92.595,24.86829891]
[1772652670406,9.711,92.644,92.596,9.716]
[1772652670805,7.18902915,92.68,92.58,7.18902915]
[1772652670806,23.51606025,92.663,92.597,24.86829891]
[1772652671009,23.51606025,92.663,92.601,24.86829891]
[1772652671415,9.709,92.662,92.601,24.86829891]
[1772652671714,9.709,92.662,92.6,7.18902915]
[1772652671715,9.709,92.662,92.609,24.86829891]
[1772652672712,9.709,92.662,92.611,24.86829891]
[1772652673413,9.709,92.662,92.615,9.714]
[1772652673608,9.709,92.662,92.616,24.86829891]
[1772652674817,9.71,92.655,92.609,9.714]
[1772652675217,23.51606025,92.661,92.616,9.714]
[1772652675418,23.51606025,92.661,92.574,19.436]
[1772652675419,23.51606025,92.639,92.562,24.86829891]
[1772652676215,23.51606025,92.639,92.58,24.86829891]
[1772652676915,23.51606025,92.636,92.58,24.86829891]
[1772652678118,23.51606025,92.636,92.588,9.717]
[1772652680421,9.712,92.635,92.588,31.39565945]
[1772652680723,23.13402435,92.653,92.593,31.39465945]
[1772652681023,23.13402435,92.628,92.566,9.719]
[1772652681416,23.13402435,92.628,92.562,21.67865945]
[1772652682518,9.713,92.622,92.562,21.67865945]
[1772652682723,23.13402435,92.622,92.562,21.67865945]
[1772652683124,23.13402435,92.606,92.548,9.721]
[1772652683319,23.13402435,92.606,92.547,21.67865945]
[1772652683820,19.423,92.637,92.531,21.67865945]
[1772652683821,23.13402435,92.586,92.531,21.67865945]
[1772652684423,23.13402435,92.586,92.534,21.67865945]
[1772652685426,23.13402435,92.586,92.536,21.67865945]
[1772652686022,24.28247604,92.605,92.539,23.50124338]
[1772652686919,24.28247604,92.602,92.541,9.722]
[1772652688322,24.28247604,92.602,92.549,9.721]
[1772652689019,24.28247604,92.618,92.559,23.50124338]
[1772652689926,24.28247604,92.618,92.528,23.50124338]
[1772652690229,24.28247604,92.607,92.545,23.50124338]
[1772652690430,24.28247604,92.607,92.511,23.50124338]
[1772652690625,24.28247604,92.589,92.528,23.50124338]
[1772652690825,24.28247604,92.589,92.501,23.50124338]
[1772652691134,24.28247604,92.586,92.526,9.723]
[1772652692023,24.28247604,92.584,92.532,9.722]
[1772652692228,24.28247604,92.584,92.533,23.50124338]
[1772652692631,7.18902915,92.61,92.547,23.50124338]
[1772652692632,24.28247604,92.602,92.547,23.50124338]
[1772652692829,24.28247604,92.618,92.547,23.50124338]
[1772652693028,24.28247604,92.649,92.547,23.50124338]
[1772652693632,24.28247604,92.649,92.561,23.50124338]
[1772652694527,9.712,92.632,92.572,23.50124338]
[1772652694829,24.28247604,92.631,92.572,23.50124338]
[1772652695631,24.28247604,92.649,92.572,23.50124338]
[1772652696733,24.28247604,92.649,92.601,0.06823904]
[1772652699437,9.711,92.646,92.601,0.06823904]
[1772652699838,24.28247604,92.649,92.601,0.06823904]
[1772652701436,9.711,92.638,92.601,0.06823904]
[1772652702942,9.712,92.631,92.601,0.06823904]
[1772652705133,9.711,92.639,92.601,0.06823904]
[1772652705329,24.28247604,92.649,92.601,23.56948242]
[1772652705530,24.28247604,92.689,92.601,23.56948242]
[1772652705735,24.28247604,92.669,92.601,0.06823904]
[1772652706140,9.712,92.632,92.59,23.50124338]
[1772652707240,9.711,92.64,92.591,9.716]
[1772652708040,9.711,92.64,92.593,9.716]
[1772652708645,24.28247604,92.647,92.593,9.716]
[1772652709144,9.71,92.648,92.601,24.14297258]
[1772652709444,9.71,92.656,92.601,24.14297258]
[1772652709837,9.71,92.656,92.603,24.14297258]
[1772652710033,9.71,92.649,92.603,24.14297258]
[1772652711243,9.709,92.657,92.606,9.715]
[1772652711644,24.97883035,92.662,92.606,9.715]
[1772652712442,9.71,92.65,92.606,9.715]
[1772652712845,24.97883035,92.662,92.612,9.714]
[1772652713147,9.709,92.658,92.603,24.14297258]
[1772652713347,24.97883035,92.662,92.603,24.14297258]
[1772652714049,24.97883035,92.662,92.619,9.713]
[1772652714349,24.97883035,92.677,92.619,24.14297258]
[1772652714640,24.97883035,92.7,92.621,24.14297258]
[1772652715042,32.1678595,92.7,92.621,24.14297258]
[1772652715242,24.97883035,92.699,92.621,24.14297258]
[1772652716546,9.707,92.677,92.63,3.35278845]
[1772652717645,9.707,92.677,92.632,9.712]
[1772652717845,24.97883035,92.681,92.633,24.14297258]
[1772652718348,9.707,92.679,92.633,33.85497258]
[1772652718644,9.707,92.679,92.634,24.14297258]
[1772652718851,24.97883035,92.699,92.65,3.35278845]
[1772652719246,24.97883035,92.699,92.641,24.14297258]
[1772652719247,3.35278845,92.69,92.641,24.14297258]
[1772652719447,24.97883035,92.689,92.641,24.14297258]
[1772652720551,9.707,92.68,92.641,24.14297258]
[1772652721143,38.0386188,92.68,92.627,9.712]
[1772652721348,34.68583035,92.68,92.63,3.35278845]
[1772652721544,24.97883035,92.68,92.63,3.35278845]
[1772652721747,24.97883035,92.68,92.63,27.49576103]
[1772652721951,24.97883035,92.699,92.65,3.35278845]
[1772652722147,24.97883035,92.719,92.66,27.49576103]
[1772652722351,24.97883035,92.719,92.67,3.35278845]
[1772652722656,9.705,92.701,92.67,3.35278845]
[1772652722853,24.97883035,92.719,92.67,3.35278845]
[1772652723056,24.97883035,92.739,92.69,27.49576103]
[1772652723252,24.97883035,92.739,92.7,3.35278845]
[1772652723453,24.97883035,92.759,92.71,3.35278845]
[1772652724054,9.7,92.748,92.71,3.35278845]
[1772652724559,9.699,92.757,92.72,3.35278845]
[1772652725454,9.699,92.757,92.71,3.35278845]
[1772652726559,9.699,92.757,92.707,24.14297258]
[1772652726752,9.7,92.749,92.707,24.14297258]
[1772652726953,24.97883035,92.756,92.69,31.3150395]
[1772652727158,24.97883035,92.756,92.691,24.14297258]
[1772652727863,24.97883035,92.741,92.691,24.14297258]
[1772652728959,24.97883035,92.728,92.671,24.14297258]
[1772652729159,24.97883035,92.77,92.68,7.17206692]
[1772652729363,24.97883035,92.77,92.681,24.14297258]
[1772652729664,24.97883035,92.743,92.681,24.14297258]
[1772652729857,24.97883035,92.743,92.661,24.14297258]
[1772652731359,24.97883035,92.759,92.681,24.14297258]
[1772652731757,24.97883035,92.759,92.646,151.058]
[1772652731758,24.97883035,92.799,92.701,24.14297258]
[1772652732658,24.97883035,92.799,92.741,24.14297258]
[1772652733563,24.97883035,92.839,92.743,24.14297258]
[1772652733762,24.97883035,92.839,92.751,24.14297258]
[1772652734059,24.97883035,92.808,92.743,9.7]
[1772652734867,9.693,92.818,92.751,24.14297258]
[1772652735062,24.97883035,92.825,92.751,24.14297258]
[1772652735660,24.97883035,92.825,92.754,24.14297258]
[1772652736161,24.97883035,92.802,92.737,24.14297258]
[1772652737162,9.697,92.78,92.72,9.703]
[1772652737365,24.97883035,92.779,92.699,24.14297258]
[1772652737760,24.97883035,92.749,92.69,9.706]
[1772652738161,24.97883035,92.765,92.691,24.14297258]
[1772652738562,9.699,92.757,92.691,24.14297258]
[1772652738768,22.71769681,92.756,92.691,24.14297258]
[1772652739162,9.7,92.748,92.693,24.38791705]
[1772652739359,22.71769681,92.756,92.693,24.38791705]
[1772652741770,22.71769681,92.789,92.695,24.38791705]
[1772652742169,22.71769681,92.762,92.695,24.38791705]
[1772652742770,9.7,92.748,92.695,24.38791705]
[1772652743173,22.71769681,92.762,92.695,24.38791705]
[1772652743375,22.71769681,92.762,92.671,24.38791705]
[1772652743967,22.71769681,92.762,92.681,24.38791705]
[1772652744969,22.71769681,92.782,92.708,24.38791705]
[1772652745169,22.71769681,92.779,92.708,24.38791705]
[1772652746072,9.699,92.752,92.708,24.38791705]
[1772652746373,23.41729377,92.762,92.69,23.37276083]
[1772652746674,23.41729377,92.759,92.69,23.37276083]
[1772652747273,23.41729377,92.742,92.673,23.37276083]
[1772652747974,170.215,92.791,92.65,7.1772496]
[1772652747975,23.41729377,92.739,92.651,23.37276083]
[1772652748171,9.703,92.721,92.657,9.709]
[1772652748376,9.703,92.721,92.658,23.37276083]
[1772652749479,9.703,92.721,92.662,9.709]
[1772652749777,23.41729377,92.723,92.658,23.37276083]
[1772652749778,9.704,92.713,92.658,23.37276083]
[1772652750187,9.703,92.722,92.66,33.08176083]
[1772652750480,150.841,92.781,92.65,7.1772496]
[1772652750481,7.1772496,92.76,92.661,23.37276083]
[1772652750686,23.41729377,92.759,92.671,23.37276083]
[1772652751186,23.41729377,92.759,92.69,9.706]
[1772652751187,9.7,92.745,92.69,9.706]
[1772652751680,23.41729377,92.778,92.697,23.37276083]
[1772652752280,9.697,92.776,92.721,9.703]
[1772652752476,23.41729377,92.815,92.73,7.1772496]
[1772652752676,23.41729377,92.815,92.731,23.37276083]
[1772652752876,9.696,92.787,92.731,23.37276083]
[1772652754388,23.41729377,92.786,92.672,23.37276083]
[1772652754582,23.41729377,92.786,92.683,23.37276083]
[1772652754787,23.41729377,92.779,92.683,23.37276083]
[1772652754984,9.699,92.757,92.683,23.37276083]
[1772652755386,9.699,92.757,92.698,9.705]
[1772652755586,23.41729377,92.765,92.699,23.37276083]
[1772652756689,23.41729377,92.765,92.702,23.37276083]
[1772652759488,9.699,92.753,92.702,23.37276083]
[1772652760188,9.7,92.745,92.702,23.37276083]
[1772652760788,9.699,92.755,92.702,23.37276083]
[1772652762090,23.41729377,92.765,92.702,23.37276083]
[1772652763488,9.698,92.762,92.705,23.37276083]
[1772652764290,9.699,92.754,92.705,23.37276083]
[1772652764496,33.11629377,92.754,92.705,23.37276083]
[1772652766390,9.698,92.763,92.706,23.37276083]
[1772652767393,9.698,92.763,92.708,9.704]
[1772652769301,9.698,92.763,92.709,24.10506351]
[1772652769799,9.698,92.763,92.711,24.10506351]
[1772652770602,9.7,92.751,92.711,24.10506351]
[1772652770802,23.41729377,92.771,92.711,24.10506351]
[1772652771303,9.699,92.759,92.712,9.704]
[1772652771503,23.41729377,92.771,92.711,24.10506351]
[1772652771704,9.7,92.749,92.711,24.10506351]
[1772652771902,23.07488615,92.748,92.69,24.10506351]
[1772652772305,23.07488615,92.748,92.673,24.10506351]
[1772652772501,23.07488615,92.748,92.638,19.86687191]
[1772652772502,23.07488615,92.739,92.657,24.10506351]
[1772652772806,23.07488615,92.737,92.657,24.10506351]
[1772652773006,9.705,92.7,92.657,24.10506351]
[1772652774510,9.706,92.693,92.64,24.10506351]
[1772652775206,9.706,92.685,92.64,24.10506351]
[1772652775405,23.07488615,92.698,92.64,24.10506351]
[1772652775605,23.07488615,92.698,92.623,24.10506351]
[1772652776010,9.707,92.677,92.623,24.10506351]
[1772652777407,9.707,92.677,92.551,26.55963067]
[1772652777408,23.07488615,92.682,92.604,24.10506351]
[1772652777813,9.709,92.658,92.604,24.10506351]
[1772652778310,23.07488615,92.679,92.604,24.10506351]
[1772652778510,23.07488615,92.679,92.622,0.06808036]
[1772652778812,7.1772496,92.68,92.622,0.06808036]
[1772652778813,9.711,92.644,92.622,0.06808036]
[1772652779112,9.711,92.644,92.604,24.10506351]
[1772652779414,9.71,92.653,92.604,24.10506351]
[1772652780013,7.1772496,92.7,92.586,24.10506351]
[1772652780014,23.07488615,92.647,92.586,24.10506351]
[1772652780815,23.07488615,92.666,92.591,24.10506351]
[1772652781314,23.07488615,92.685,92.611,24.10506351]
[1772652781610,23.07488615,92.709,92.611,24.10506351]
[1772652782513,9.707,92.684,92.621,24.10506351]
[1772652783109,9.708,92.673,92.621,24.10506351]
[1772652783510,23.07488615,92.689,92.621,24.10506351]
[1772652784211,9.708,92.674,92.621,24.10506351]
[1772652785019,32.78188615,92.683,92.621,24.10506351]
[1772652785214,23.07488615,92.701,92.621,24.10506351]
[1772652786116,9.706,92.693,92.635,24.10506351]
[1772652786714,23.07488615,92.729,92.641,24.10506351]
[1772652787116,9.7,92.744,92.684,9.706]
[1772652787316,23.07488615,92.748,92.661,24.10506351]
[1772652787522,7.1772496,92.75,92.661,24.10506351]
[1772652787523,23.07488615,92.729,92.661,24.10506351]
[1772652787818,9.704,92.708,92.661,24.10506351]
[1772652788122,23.07488615,92.729,92.661,24.10506351]
[1772652789215,23.07488615,92.746,92.664,24.10506351]
[1772652790517,23.07488615,92.739,92.67,24.10506351]
[1772652792025,23.07488615,92.739,92.672,24.10506351]
[1772652792924,9.703,92.721,92.673,33.81306351]
[1772652793123,23.07488615,92.739,92.674,24.10506351]
[1772652793626,32.77588615,92.739,92.685,24.10506351]
[1772652794015,9.701,92.739,92.685,24.10506351]
[1772652794519,30.2540338,92.74,92.661,24.10506351]
[1772652794714,23.07488615,92.739,92.661,24.10506351]
[1772652795314,9.704,92.708,92.661,24.10506351]
[1772652798426,9.705,92.701,92.661,24.10506351]
[1772652798624,23.07488615,92.723,92.661,24.10506351]
[1772652799224,7.17914765,92.74,92.643,21.69591963]
[1772652799225,23.29255599,92.706,92.643,21.69591963]
[1772652799823,9.705,92.698,92.643,21.69591963]
[1772652800223,23.29255599,92.706,92.643,21.69591963]
[1772652801032,23.29255599,92.706,92.665,0.06801443]
[1772652801431,9.706,92.691,92.665,0.06801443]